bitfinex/quotes_SOLUSD_20250210
["timestamp","ask_amount","ask_price","bid_price","bid_amount"]
[1739216179922,0.92577764,202.57,202.52,4.9677]
[1739216180423,6.5319239,202.58,202.52,4.9677]
[1739216180728,0.92571176,202.61,202.54,6.5319239]
[1739216180912,13.41184853,202.6,202.54,6.5319239]
[1739216181308,0.92571176,202.61,202.54,6.5319239]
[1739216181913,0.92571176,202.61,202.55,4.937]
[1739216182623,13.41184853,202.6,202.55,4.937]
[1739216182925,14.33747868,202.6,202.55,4.937]
[1739216186728,0.92561428,202.64,202.59,6.5319239]
[1739216186938,8.64000506,202.65,202.58,6.5319239]
[1739216187112,13.41184853,202.64,202.58,6.5319239]
[1739216187430,13.41184853,202.64,202.57,6.5319239]
[1739216188333,6.5319239,202.59,202.55,137.2]
[1739216188639,13.41184853,202.57,202.52,0.03]
[1739216188810,0.92577681,202.56,202.52,0.03]
[1739216190134,23.6585823,202.54,202.52,0.03]
[1739216190434,0.92593302,202.53,202.52,0.03]
[1739216194043,14.33778155,202.53,202.52,0.03]
[1739216194239,19.27528155,202.53,202.52,0.03]
[1739216198942,13.41184853,202.52,202.43,224.7453]
[1739216199137,13.41184853,202.48,202.43,6.3455]
[1739216199332,0.926186,202.47,202.43,6.3455]
[1739216199536,13.41184853,202.46,202.4,10.24673377]
[1739216200219,11.17291977,202.47,202.4,10.24673377]
[1739216200419,11.17291977,202.47,202.4,15.18713377]
[1739216201140,16.11201977,202.47,202.4,15.18713377]
[1739216201535,13.41184853,202.46,202.4,15.18713377]
[1739216201849,16.11201977,202.47,202.4,15.18713377]
[1739216201850,0.92623263,202.45,202.4,10.24673377]
[1739216202220,0.92623263,202.45,202.39,4.9409]
[1739216202642,19.2775513,202.46,202.39,4.9409]
[1739216202842,13.41184853,202.45,202.39,4.9409]
[1739216203043,10.24673377,202.44,202.38,6.6224]
[1739216203245,13.41184853,202.43,202.37,10.24673377]
[1739216203421,11.17314987,202.42,202.35,10.24673377]
[1739216203625,23.6585823,202.41,202.34,4.9421]
[1739216204127,23.6585823,202.41,202.34,15.18883377]
[1739216204827,14.33832919,202.41,202.35,10.24673377]
[1739216205026,13.41184853,202.41,202.35,10.24673377]
[1739216205227,13.41184853,202.41,202.4,0.03]
[1739216205831,10.24673377,202.42,202.4,0.03]
[1739216209337,10.24673377,202.43,202.4,0.03]
[1739216209747,19.97954893,202.43,202.4,0.03]
[1739216211035,13.41184853,202.41,202.4,0.03]
[1739216213047,18.35224853,202.41,202.4,0.03]
[1739216213354,19.97954893,202.41,202.4,0.03]
[1739216214653,13.41184853,202.41,202.4,0.03]
[1739216215435,19.97954893,202.41,202.4,0.03]
[1739216215635,13.41184853,202.41,202.4,0.03]
[1739216220462,6.5677004,202.42,202.4,0.03]
[1739216220666,11.5069004,202.46,202.4,0.03]
[1739216220963,19.97954893,202.44,202.4,0.03]
[1739216221260,7.49404522,202.43,202.4,0.03]
[1739216221650,6.5677004,202.43,202.4,0.03]
[1739216221859,20.90595083,202.44,202.4,0.03]
[1739216222441,25.84585083,202.44,202.4,0.03]
[1739216223865,13.41184853,202.42,202.4,0.03]
[1739216224165,13.41184853,202.41,202.4,0.03]
[1739216224866,19.97954893,202.41,202.4,0.03]
[1739216225767,33.41184853,202.37,202.22,8.2028004]
[1739216225942,6.5677004,202.29,202.22,8.2028004]
[1739216226264,6.5677004,202.31,202.24,6.5677004]
[1739216226952,6.5677004,202.31,202.22,13.1476004]
[1739216227148,11.5106004,202.31,202.22,8.2028004]
[1739216227661,10.27526281,202.3,202.22,11.91036281]
[1739216228259,10.27526281,202.3,202.22,16.85526281]
[1739216228443,10.27526281,202.3,202.24,10.27526281]
[1739216229265,10.27526281,202.3,202.22,18.43116281]
[1739216229445,10.27526281,202.3,202.22,23.37626281]
[1739216230278,10.27526281,202.3,202.22,23.40626281]
[1739216231276,10.27526281,202.3,202.23,10.27526281]
[1739216231887,11.20211889,202.32,202.23,10.27526281]
[1739216232050,10.27526281,202.32,202.23,10.27526281]
[1739216232250,16.14481334,202.32,202.23,10.27526281]
[1739216233166,13.41184853,202.31,202.23,10.27526281]
[1739216233369,11.20224425,202.3,202.23,10.27526281]
[1739216233575,11.20224425,202.3,202.23,15.22006281]
[1739216233958,10.27526281,202.3,202.23,15.22006281]
[1739216234179,4.943,202.31,202.23,15.22006281]
[1739216234385,10.27526281,202.32,202.25,10.27526281]
[1739216235474,10.27526281,202.32,202.25,15.21946281]
[1739216235866,11.90906281,202.34,202.27,10.27526281]
[1739216236191,1.6338,202.34,202.27,10.27526281]
[1739216236694,16.85116281,202.34,202.26,10.27526281]
[1739216236981,17.77793123,202.34,202.26,10.27526281]
[1739216237283,16.85116281,202.34,202.26,10.27526281]
[1739216237676,16.85116281,202.34,202.27,4.9438]
[1739216238063,0.92680801,202.33,202.26,15.21936281]
[1739216238279,0.92680801,202.33,202.26,10.27526281]
[1739216238984,0.92680801,202.33,202.26,15.21936281]
[1739216239155,16.85116281,202.34,202.26,15.21936281]
[1739216240290,11.90906281,202.34,202.26,15.21936281]
[1739216240481,10.27526281,202.34,202.26,15.21936281]
[1739216241156,11.20200781,202.34,202.26,15.21936281]
[1739216241355,16.14420781,202.34,202.26,15.21936281]
[1739216242189,15.21746281,202.34,202.26,15.21936281]
[1739216242970,10.27526281,202.32,202.24,10.27526281]
[1739216243295,11.20212441,202.31,202.24,10.27526281]
[1739216243677,11.20212441,202.31,202.22,147.50526281]
[1739216243877,11.20212441,202.31,202.22,15.25036281]
[1739216244195,10.27526281,202.27,202.22,0.03]
[1739216244359,10.27526281,202.25,202.22,0.03]
[1739216244997,10.27526281,202.26,202.22,0.03]
[1739216245578,10.27526281,202.26,202.19,10.27526281]
[1739216246287,8.1541,202.19,202.05,138.2]
[1739216246484,8.1541,202.19,202.09,10.27526281]
[1739216246485,10.27526281,202.17,202.09,10.27526281]
[1739216246661,11.92456281,202.19,202.11,10.27526281]
[1739216247284,0.92746673,202.18,202.11,10.27526281]
[1739216247596,11.92456281,202.19,202.11,15.22296281]
[1739216247771,6.58283919,202.22,202.14,6.58283919]
[1739216248178,0.92731142,202.21,202.14,6.58283919]
[1739216248565,7.51020559,202.22,202.14,6.58283919]
[1739216248964,15.66427189,202.24,202.16,6.58283919]
[1739216249287,8.23213919,202.24,202.18,6.58283919]
[1739216250180,1.6493,202.24,202.18,11.52873919]
[1739216250694,7.71461723,202.26,202.19,6.58283919]
[1739216250695,15.22463637,202.26,202.19,6.58283919]
[1739216250871,15.22463637,202.26,202.18,11.52873919]
[1739216251074,7.51001914,202.26,202.18,11.52873919]
[1739216251490,6.58283919,202.26,202.18,11.52873919]
[1739216252568,6.58283919,202.27,202.2,6.58283919]
[1739216252994,1.6493,202.29,202.24,6.58283919]
[1739216253293,1.6493,202.29,202.25,6.58283919]
[1739216253490,7.71461723,202.31,202.26,6.58283919]
[1739216253698,7.71461723,202.31,202.27,6.58283919]
[1739216253897,7.71461723,202.31,202.26,6.58283919]
[1739216254473,7.57274199,202.33,202.26,6.58283919]
[1739216254796,0.063,202.33,202.27,4.9438]
[1739216255202,0.063,202.33,202.27,11.52663919]
[1739216255411,0.063,202.33,202.29,6.58283919]
[1739216255576,0.063,202.33,202.27,17.3035]
[1739216255577,0.063,202.31,202.27,17.3035]
[1739216255780,0.063,202.31,202.3,10.26583867]
[1739216256084,0.063,202.31,202.28,10.26583867]
[1739216256294,0.063,202.31,202.27,15.20963867]
[1739216256497,0.063,202.31,202.27,4.9438]
[1739216256708,0.063,202.31,202.26,4.9441]
[1739216257573,0.063,202.31,202.25,137.2]
[1739216257777,10.32883867,202.31,202.25,137.2]
[1739216258089,10.32883867,202.31,202.25,142.1443]
[1739216258506,10.32883867,202.31,202.25,137.2]
[1739216258507,10.26583867,202.3,202.25,137.2]
[1739216258675,11.19274828,202.3,202.25,137.2]
[1739216258999,10.26583867,202.29,202.25,137.2]
[1739216259905,10.26583867,202.29,202.23,8.6047]
[1739216261302,10.26583867,202.29,202.23,3.66]
[1739216261494,0.9269873,202.28,202.23,3.66]
[1739216262504,16.13652597,202.28,202.23,3.66]
[1739216262694,10.26583867,202.27,202.2,4.9455]
[1739216263010,0.92711946,202.26,202.19,15.21163867]
[1739216263395,0.92711946,202.26,202.2,10.26583867]
[1739216263606,15.20923867,202.29,202.21,10.26583867]
[1739216263808,11.19290064,202.28,202.21,10.26583867]
[1739216264387,10.26583867,202.27,202.19,15.21163867]
[1739216264711,15.20993867,202.27,202.19,15.21163867]
[1739216265299,0.92709995,202.26,202.2,10.26583867]
[1739216265497,15.20993867,202.27,202.19,4.9458]
[1739216265498,15.20913867,202.3,202.22,10.26583867]
[1739216265804,0.99009995,202.31,202.19,4.9458]
[1739216265805,0.063,202.31,202.24,10.26583867]
[1739216266212,0.063,202.31,202.26,10.26583867]
[1739216266376,0.063,202.31,202.25,10.26583867]
[1739216266576,0.063,202.31,202.25,15.21003867]
[1739216266781,0.98990133,202.31,202.24,10.26583867]
[1739216266978,10.26583867,202.3,202.23,10.26583867]
[1739216267505,11.25574,202.31,202.24,10.26583867]
[1739216268210,0.063,202.27,202.24,10.26583867]
[1739216268409,0.063,202.27,202.26,10.26583867]
[1739216270487,0.063,202.27,202.26,15.20993867]
[1739216272585,0.063,202.31,202.26,165.77023867]
[1739216272784,0.063,202.31,202.3,10.26583867]
[1739216272992,0.063,202.31,202.3,147.46583867]
[1739216273200,0.063,202.33,202.3,147.46583867]
[1739216273523,0.0001,202.33,202.32,10.26583867]
[1739216273700,0.0001,202.33,202.32,25.6776872]
[1739216274087,0.0001,202.33,202.32,24.6776872]
[1739216274530,0.0001,202.33,202.32,23.6776872]
[1739216274732,0.0001,202.33,202.32,28.6202872]
[1739216275316,0.0001,202.33,202.32,32.2802872]
[1739216276119,0.0001,202.33,202.32,34.2802872]
[1739216276497,0.0001,202.33,202.32,33.2802872]
[1739216276694,0.0001,202.33,202.32,32.2802872]
[1739216276893,0.0001,202.33,202.32,18.86843867]
[1739216277234,0.0001,202.33,202.3,18.86883867]
[1739216277395,0.0001,202.33,202.3,13.92583867]
[1739216277595,0.0001,202.33,202.3,18.86883867]
[1739216278289,0.0001,202.33,202.31,10.26583867]
[1739216279014,0.0001,202.33,202.3,10.26583867]
[1739216279320,0.92678823,202.33,202.26,10.26583867]
[1739216279493,11.19277411,202.33,202.26,10.26583867]
[1739216279693,0.0001,202.33,202.26,10.26583867]
[1739216279894,0.92683353,202.32,202.26,10.26583867]
[1739216280096,0.9269683,202.33,202.26,10.26583867]
[1739216280301,0.0001,202.33,202.3,10.26583867]
[1739216280509,0.0001,202.33,202.27,10.26583867]
[1739216280719,0.92694677,202.33,202.26,10.26583867]
[1739216281516,11.19278544,202.33,202.25,15.21013867]
[1739216281700,16.13528544,202.33,202.25,15.21013867]
[1739216283123,0.0001,202.33,202.26,10.26583867]
[1739216283324,10.26583867,202.3,202.23,4.9446]
[1739216283625,12.70526293,202.29,202.21,18.87093867]
[1739216284322,12.70526293,202.29,202.22,10.26583867]
[1739216284510,2.43942426,202.29,202.23,10.26583867]
[1739216284824,1.5124,202.29,202.23,15.21063867]
[1739216285014,1.5124,202.29,202.24,10.26583867]
[1739216285616,1.5124,202.29,202.25,10.26583867]
[1739216286829,1.5124,202.29,202.25,15.21003867]
[1739216287655,1.5124,202.29,202.25,10.26583867]
[1739216288004,1.5124,202.29,202.24,10.26583867]
[1739216288412,11.1928605,202.28,202.2,10.26583867]
[1739216288710,10.26583867,202.25,202.19,0.03]
[1739216289023,10.26583867,202.24,202.19,0.03]
[1739216289220,0.92727232,202.23,202.19,0.03]
[1739216289538,11.19311099,202.23,202.19,0.03]
[1739216290742,4.9451,202.22,202.19,0.03]
[1739216291026,11.77823867,202.2,202.19,0.03]
[1739216292134,16.72373867,202.2,202.19,0.03]
[1739216292335,30.1355872,202.2,202.07,4.9486]
[1739216292636,10.26583867,202.16,202.08,10.26583867]
[1739216292826,10.26583867,202.16,202.07,4.9486]
[1739216292827,10.26583867,202.16,202.09,10.26583867]
[1739216293007,10.26583867,202.17,202.09,10.26583867]
[1739216293206,11.19353689,202.19,202.12,10.26583867]
[1739216293407,1.5124,202.2,202.14,10.26583867]
[1739216293629,1.5124,202.2,202.15,10.26583867]
[1739216294225,10.26583867,202.18,202.1,10.26583867]
[1739216294430,10.26583867,202.18,202.11,10.26583867]
[1739216294611,0.92739125,202.19,202.12,10.26583867]
[1739216294810,0.92739125,202.19,202.13,10.26583867]
[1739216295211,0.92739125,202.19,202.12,10.26583867]
[1739216295924,12.70573101,202.2,202.12,10.26583867]
[1739216296241,12.70573101,202.2,202.13,10.26583867]
[1739216296843,1.5124,202.2,202.13,10.26583867]
[1739216297033,1.5124,202.2,202.15,10.26583867]
[1739216297536,1.5124,202.2,202.16,10.26583867]
[1739216297932,1.5124,202.2,202.17,10.26583867]
[1739216300541,1.5124,202.2,202.17,15.21193867]
[1739216301657,1.5124,202.2,202.13,12.3678]
[1739216301658,1.5124,202.2,202.16,4.9464]
[1739216302235,11.88733867,202.25,202.17,10.26583867]
[1739216302450,0.92729556,202.23,202.17,10.26583867]
[1739216302624,11.19313423,202.23,202.16,4.9464]
[1739216302838,10.26583867,202.23,202.16,4.9464]
[1739216303047,0.92735066,202.24,202.17,10.26583867]
[1739216303347,10.26583867,202.19,202.11,10.26583867]
[1739216303521,0.92750787,202.18,202.11,10.26583867]
[1739216303726,10.26583867,202.21,202.13,10.26583867]
[1739216303927,10.26583867,202.23,202.15,10.26583867]
[1739216304322,10.26583867,202.23,202.16,4.9465]
[1739216305938,0.92730181,202.22,202.16,4.9465]
[1739216306129,16.13795923,202.23,202.16,4.9465]
[1739216306325,16.13795923,202.23,202.15,10.26583867]
[1739216306539,10.26583867,202.21,202.13,10.26583867]
[1739216306842,0.92744661,202.2,202.13,10.26583867]
[1739216307946,10.26583867,202.21,202.15,10.26583867]
[1739216309034,5.87257998,202.22,202.15,15.21243867]
[1739216310049,0.92747998,202.22,202.15,15.21243867]
[1739216310630,12.81466715,202.25,202.17,10.26583867]
[1739216310828,12.81466715,202.25,202.18,10.26583867]
[1739216311033,17.75896715,202.25,202.18,10.26583867]
[1739216315648,17.75896715,202.25,202.16,10.26583867]
[1739216315948,10.26583867,202.23,202.14,15.21283867]
[1739216316246,10.26583867,202.19,202.15,0.03]
[1739216316448,0.92752726,202.18,202.15,0.03]
[1739216317255,5.87362726,202.18,202.15,0.03]
[1739216317745,11.88733867,202.17,202.15,0.03]
[1739216317943,0.92764543,202.16,202.15,0.03]
[1739216319036,1.6215,202.17,202.15,0.03]
[1739216319757,0.92752084,202.2,202.15,0.03]
[1739216319962,1.6215,202.21,202.15,0.03]
[1739216319963,1.6215,202.21,202.16,10.26583867]
[1739216320154,1.6215,202.21,202.18,10.26583867]
[1739216320946,0.92741642,202.24,202.19,10.26583867]
[1739216321143,0.063,202.25,202.23,10.26583867]
[1739216321436,0.063,202.25,202.24,10.26583867]
[1739216323151,0.063,202.25,202.23,10.26583867]
[1739216323459,0.063,202.25,202.24,10.26583867]
[1739216325143,0.063,202.25,202.24,15.21043867]
[1739216332545,0.063,202.25,202.24,18.93043867]
[1739216333769,0.063,202.25,202.24,15.21043867]
[1739216334065,0.063,202.25,202.24,18.93043867]
[1739216335264,0.063,202.25,202.21,10.26583867]
[1739216336457,0.063,202.25,202.21,15.21113867]
[1739216338458,0.063,202.25,202.21,10.26583867]
[1739216339173,0.063,202.25,202.21,15.21113867]
[1739216340058,0.99016492,202.25,202.19,15.21143867]
[1739216340272,0.99016492,202.25,202.19,15.24143867]
[1739216341078,0.063,202.25,202.19,15.24143867]
[1739216341271,0.063,202.25,202.21,10.26583867]
[1739216341472,0.063,202.25,202.24,10.26583867]
[1739216343155,0.063,202.25,202.23,10.26583867]
[1739216343954,0.063,202.25,202.22,10.26583867]
[1739216344155,0.063,202.25,202.21,10.26583867]
[1739216344652,0.063,202.25,202.22,10.26583867]
[1739216345278,0.99010227,202.25,202.19,0.03]
[1739216345664,11.25594094,202.25,202.19,0.03]
[1739216345981,10.26583867,202.24,202.19,0.03]
[1739216346194,0.92733824,202.23,202.19,0.03]
[1739216347059,0.92730781,202.24,202.19,0.03]
[1739216347580,5.87200781,202.24,202.19,0.03]
[1739216348172,16.13784648,202.24,202.19,0.03]
[1739216351663,1.6336,202.23,202.19,0.03]
[1739216351871,0.92742412,202.22,202.19,0.03]
[1739216352063,5.87272412,202.22,202.19,0.03]
[1739216352866,2.56098963,202.23,202.19,0.03]
[1739216353694,7.50588963,202.23,202.19,0.03]
[1739216355083,10.26583867,202.22,202.19,0.03]
[1739216355389,0.92748077,202.21,202.19,0.03]
[1739216355769,0.92748077,202.21,202.15,0.03]
[1739216356187,2.56103992,202.23,202.16,10.26583867]
[1739216356372,7.50583992,202.23,202.16,10.26583867]
[1739216357889,7.50583992,202.23,202.16,15.21233867]
[1739216361298,1.6336,202.23,202.18,10.26583867]
[1739216362495,1.6336,202.23,202.18,15.21183867]
[1739216363601,0.063,202.25,202.2,10.26583867]
[1739216365298,0.063,202.23,202.2,10.26583867]
[1739216367214,0.063,202.23,202.2,15.21133867]
[1739216367382,0.063,202.23,202.21,10.26583867]
[1739216367893,0.063,202.23,202.22,10.26583867]
[1739216369287,0.063,202.23,202.21,10.26583867]
[1739216369603,0.063,202.23,202.22,10.26583867]
[1739216370518,0.063,202.23,202.22,15.21093867]
[1739216372716,0.063,202.23,202.22,10.26583867]
[1739216374115,0.063,202.23,202.22,15.21093867]
[1739216375708,0.063,202.23,202.22,6.57630626]
[1739216375904,0.063,202.23,202.2,6.57630626]
[1739216376906,0.063,202.23,202.2,11.52170626]
[1739216379610,0.063,202.23,202.19,0.03]
[1739216379792,0.99033026,202.23,202.19,0.03]
[1739216380806,7.56663652,202.23,202.19,0.03]
[1739216381004,12.51143652,202.23,202.19,0.03]
[1739216382389,0.99033026,202.23,202.19,0.03]
[1739216382596,0.063,202.23,202.19,0.03]
[1739216386192,0.063,202.23,202.2,6.57630626]
[1739216386588,0.063,202.23,202.19,0.03]
[1739216387126,7.56656685,202.23,202.19,0.03]
[1739216391223,7.71461723,202.22,202.19,0.03]
[1739216391523,0.92736477,202.21,202.19,0.03]
[1739216392023,13.5870843,202.22,202.19,0.03]
[1739216392224,5.87246707,202.22,202.19,0.03]
[1739216392623,6.57630626,202.21,202.19,0.03]
[1739216392828,0.92742815,202.2,202.19,0.03]
[1739216394335,0.92742815,202.2,202.18,0.02114902]
[1739216394818,7.71461723,202.21,202.18,0.02114902]
[1739216395515,0.9274033,202.2,202.18,0.02114902]
[1739216396025,7.71461723,202.21,202.18,0.02114902]
[1739216396211,0.99042064,202.23,202.18,6.59745528]
[1739216398614,5.93532064,202.23,202.18,6.59745528]
[1739216399230,5.93532064,202.23,202.18,0.02114902]
[1739216399534,6.57630626,202.22,202.18,0.02114902]
[1739216399709,0.92745035,202.21,202.18,0.02114902]
[1739216400433,5.87263069,202.22,202.18,0.02114902]
[1739216400934,0.92743069,202.22,202.18,0.02114902]
[1739216401120,13.58724792,202.22,202.18,0.02114902]
[1739216401318,20.16355418,202.22,202.18,0.02114902]
[1739216402511,7.71461723,202.21,202.18,0.02114902]
[1739216402717,0.92744633,202.2,202.18,0.02114902]
[1739216406138,0.92741612,202.21,202.18,0.02114902]
[1739216406630,7.71461723,202.22,202.18,6.59745528]
[1739216406819,7.71461723,202.22,202.18,0.02114902]
[1739216408441,16.38764722,202.23,202.18,0.02114902]
[1739216408442,8.70503085,202.23,202.18,0.02114902]
[1739216409930,20.22623711,202.23,202.18,0.02114902]
[1739216410252,6.57630626,202.21,202.18,0.02114902]
[1739216410422,5.87305339,202.2,202.18,0.02114902]
[1739216411625,13.58767062,202.2,202.18,0.02114902]
[1739216411827,8.64217062,202.2,202.18,0.02114902]
[1739216413226,0.92755339,202.2,202.18,0.02114902]
[1739216413423,0.92744131,202.21,202.18,0.02114902]
[1739216414336,5.87274131,202.21,202.18,0.02114902]
[1739216415934,13.58735854,202.21,202.18,0.02114902]
[1739216416133,7.71461723,202.21,202.18,0.02114902]
[1739216418337,0.063,202.22,202.18,0.02114902]
[1739216419351,5.0081,202.22,202.18,0.02114902]
[1739216419649,0.92737547,202.21,202.18,0.02114902]
[1739216420236,5.93551881,202.22,202.18,0.02114902]
[1739216423249,13.65013604,202.22,202.18,0.02114902]
[1739216428955,7.71461723,202.21,202.18,0.02114902]
[1739216432358,7.71461723,202.2,202.18,0.02114902]
[1739216433260,12.66021723,202.2,202.18,0.02114902]
[1739216433945,0.92744092,202.19,202.18,0.02114902]
[1739216435042,7.71461723,202.19,202.18,0.02114902]
[1739216435256,12.66041723,202.19,202.18,0.02114902]
[1739216436039,7.71461723,202.19,202.18,0.02114902]
[1739216436760,15.3972336,202.19,202.18,0.02114902]
[1739216437060,15.3972336,202.19,202.15,0.03]
[1739216437360,0.92747273,202.18,202.15,0.03]
[1739216438563,7.50377899,202.18,202.15,0.03]
[1739216439162,7.68699935,202.16,202.15,0.03]
[1739216439365,8.61463765,202.16,202.15,0.03]
[1739216443663,13.56113765,202.16,202.15,0.03]
[1739216444767,5.8741383,202.16,202.15,0.03]
[1739216445945,12.45044456,202.16,202.15,0.03]
[1739216448461,20.12396951,202.16,202.15,0.03]
[1739216448872,19.19633121,202.16,202.15,0.03]
[1739216449250,20.12406302,202.16,202.15,0.03]
[1739216450479,25.8623866,202.16,202.15,0.03]
[1739216453269,19.28608034,202.16,202.15,0.03]
[1739216453474,26.95889949,202.16,202.15,0.03]
[1739216454277,8.60055096,202.16,202.15,0.03]
[1739216454675,22.01239949,202.16,202.15,0.03]
[1739216454872,13.54705096,202.16,202.15,0.03]
[1739216455359,5.87423181,202.16,202.15,0.03]
[1739216461987,0.92773181,202.16,202.15,0.03]
[1739216462804,5.87423181,202.16,202.15,0.03]
[1739216463098,7.67281915,202.17,202.15,6.60630626]
[1739216463264,7.67281915,202.17,202.16,6.57630626]
[1739216465191,0.92770274,202.2,202.15,6.60630626]
[1739216465366,0.92770274,202.2,202.15,0.03]
[1739216465571,0.92770274,202.2,202.15,11.55300626]
[1739216466890,0.92770274,202.2,202.15,6.60630626]
[1739216467095,12.449609,202.2,202.15,0.03]
[1739216467621,6.57630626,202.17,202.15,0.03]
[1739216467910,7.50397305,202.16,202.15,0.03]
[1739216468803,5.87416679,202.16,202.1,6.57630626]
[1739216469102,13.54698594,202.16,202.1,6.57630626]
[1739216470704,13.54698594,202.16,202.15,0.03]
[1739216470902,20.1232922,202.16,202.15,0.03]
[1739216472410,13.54698594,202.16,202.15,0.03]
[1739216472895,5.87416679,202.16,202.15,0.03]
[1739216475809,13.54698594,202.16,202.15,0.03]
[1739216479327,5.87416679,202.16,202.15,0.03]
[1739216480295,16.32495362,202.17,202.15,0.03]
[1739216481203,15.3972336,202.17,202.15,0.03]
[1739216482012,0.927576,202.16,202.15,0.03]
[1739216482306,16.3248096,202.17,202.15,0.03]
[1739216482505,0.063,202.16,202.15,0.03]
[1739216483004,0.063,202.16,202.12,6.57630626]
[1739216483200,0.063,202.16,202.14,6.57630626]
[1739216485721,0.063,202.16,202.12,19.98815479]
[1739216487741,0.063,202.16,202.1,6.57630626]
[1739216487742,6.63930626,202.16,202.1,6.57630626]
[1739216487943,0.063,202.16,202.1,6.57630626]
[1739216488240,0.063,202.16,202.12,6.57630626]
[1739216488611,7.74772138,202.16,202.12,6.57630626]
[1739216488810,8.67536336,202.16,202.12,6.57630626]
[1739216489439,13.62216336,202.16,202.1,26.57630626]
[1739216490820,7.68472138,202.15,202.1,26.57630626]
[1739216491517,0.92766755,202.14,202.1,26.57630626]
[1739216491720,5.87466755,202.14,202.1,26.57630626]
[1739216492734,13.55938893,202.14,202.1,26.57630626]
[1739216493939,8.61238893,202.14,202.1,26.57630626]
[1739216494347,8.61238893,202.14,202.1,26.60630626]
[1739216494764,7.68472138,202.14,202.1,26.60630626]
[1739216495046,7.68472138,202.14,202.1,31.55420626]
[1739216495940,7.68472138,202.15,202.1,31.55420626]
[1739216499551,7.74772138,202.16,202.1,31.55420626]
[1739216501022,0.92762696,202.15,202.1,31.55420626]
[1739216503453,0.92762696,202.15,202.1,26.60630626]
[1739216503752,5.87442696,202.15,202.1,26.60630626]
[1739216505046,13.55914834,202.15,202.1,26.60630626]
[1739216506944,13.55914834,202.15,202.1,6.60630626]
[1739216507149,13.55914834,202.15,202.1,0.03]
[1739216508050,7.68472138,202.14,202.1,0.03]
[1739216508235,0.92774841,202.13,202.1,0.03]
[1739216509854,5.87504841,202.13,202.1,0.03]
[1739216513637,0.92774841,202.13,202.1,0.03]
[1739216513843,8.61247569,202.14,202.1,0.03]
[1739216517260,7.68472138,202.14,202.13,19.98815479]
[1739216517935,7.68472138,202.15,202.13,19.98815479]
[1739216518135,7.68472138,202.15,202.11,26.57630626]
[1739216518963,7.68472138,202.15,202.12,13.41184853]
[1739216519469,0.063,202.16,202.12,18.35914853]
[1739216519851,0.063,202.16,202.13,6.57630626]
[1739216520239,0.063,202.16,202.12,18.35914853]
[1739216521060,0.063,202.16,202.13,6.57630626]
[1739216521955,0.063,202.16,202.15,6.57630626]
[1739216522160,0.063,202.16,202.15,19.98815479]
[1739216523870,0.063,202.16,202.15,13.41184853]
[1739216524964,0.063,202.16,202.12,6.57630626]
[1739216525462,0.063,202.16,202.15,13.41184853]
[1739216528648,0.063,202.16,202.13,6.57630626]
[1739216529074,0.063,202.16,202.12,20.01815479]
[1739216531663,0.99053288,202.16,202.12,0.03]
[1739216532665,5.93723288,202.16,202.12,0.03]
[1739216533176,7.68472138,202.15,202.12,0.03]
[1739216534776,4.947,202.14,202.12,0.03]
[1739216535282,7.68472138,202.14,202.12,0.03]
[1739216536277,12.69432138,202.16,202.12,0.03]
[1739216537374,7.74772138,202.16,202.12,0.03]
[1739216537679,0.063,202.16,202.12,6.60630626]
[1739216537883,0.063,202.16,202.12,0.03]
[1739216539266,2.63816726,202.16,202.12,0.03]
[1739216539587,6.57630626,202.13,202.12,0.03]
[1739216541287,11.52360626,202.13,202.12,0.03]
[1739216543286,30.30970868,202.13,202.05,13.41184853]
[1739216543472,0.92784277,202.12,202.07,13.41184853]
[1739216544585,5.87534277,202.12,202.07,13.41184853]
[1739216544888,7.50414903,202.12,202.05,6.57630626]
[1739216545087,6.57630626,202.11,202.04,6.57630626]
[1739216545279,0.92787386,202.11,202.05,13.41184853]
[1739216546173,8.60734568,202.12,202.05,6.57630626]
[1739216546381,7.6794969,202.12,202.07,13.41184853]
[1739216546980,7.6794969,202.12,202.07,19.98815479]
[1739216547187,7.6794969,202.12,202.09,19.98815479]
[1739216547695,7.6794969,202.14,202.09,19.98815479]
[1739216548189,7.6794969,202.14,202.08,19.98815479]
[1739216548396,0.92766873,202.13,202.08,13.41184853]
[1739216548568,5.87496873,202.13,202.08,13.41184853]